Cogmind - Beta 9.4 @@@ ROGUE MODE // 2020.03.04 @ 15:50:59 Player: David Result: Destroyed by L-31 Rogue with Katana Performance ------------- Evolutions (2) 1000 Regions Visited (4) 800 Robots Destroyed (24) 120 Value Destroyed (1096) 1096 Prototype IDs (1) 20 Alien Tech Used (0) 0 Bonus (400) 400 TOTAL SCORE: 3436 Bonus ------- Pacifist 200 Entered Garrisons 200 Cogmind --------- Core Integrity 0/550 Matter 158/300 Energy 100/100 System Corruption 0% Temperature Cool (0) Movement Core (50) Location -8/Garrison Parts ------- > --- POWER (1) -------- (None) > --- PROPULSION (3) --- (None) > --- UTILITY (5) ------ Improved Signal Interpreter > --- WEAPON (2) ------- Axe > --- INVENTORY (4) ---- Weight Redist. System Relay Coupler [Brawler] (21) Assault Cannon Peak State ------------ > --- POWER ------------ Nuclear Core > --- PROPULSION ------- Armored Wheel Armored Wheel Armored Wheel > --- UTILITY ---------- Small Storage Unit Improved Sensor Array Improved Signal Interpreter ECM Suite Hacking Suite > --- WEAPON ----------- Improved EM Shotgun Improved EM Shotgun > --- INVENTORY -------- Light Deuterium Engine Weight Redist. System Core Shielding Grenade Launcher Axe [Rating: 25] Favorites ----------- Power Ion Engine Engine Ion Engine Power Core Nuclear Core Propulsion Armored Wheel Wheel Armored Wheel Utility Small Storage Unit Device ECM Suite Storage Small Storage Unit Processor Signal Interpreter Hackware Hacking Suite Protection Core Shielding Weapon Assault Rifle Energy Gun Improved EM Shotgun Ballistic Gun Assault Rifle Ballistic Cannon Assault Cannon Launcher Grenade Launcher Slashing Weapon Axe Build | -11 -10 -9 -8 -8 ------- Run | Scr Mat Mat Mat Gar Slots Evolved 4 | . . 2 2 . Power . | . . . . . Propulsion 1 | . . . 1 . Utility 3 | . . 2 1 . Weapon . | . . . . . Parts Attached 42 | 5 7 6 18 6 Power 5 | 1 . . 3 1 Engine 3 | 1 . . 1 1 Core 2 | . . . 2 . Reactor . | . . . . . Propulsion 8 | 2 2 . 4 . Treads . | . . . . . Leg . | . . . . . Wheel 8 | 2 2 . 4 . Hover . | . . . . . Flight . | . . . . . Utility 11 | . 4 2 5 . Device 4 | . 1 2 1 . Storage 2 | . 2 . . . Processor 2 | . 1 . 1 . Hackware 1 | . . . 1 . Protection 2 | . . . 2 . Artifact . | . . . . . Weapon 18 | 2 1 4 6 5 Energy Gun 3 | . . . 3 . Energy Cannon . | . . . . . Ballistic Gun 6 | 2 1 2 1 . Ballistic Cannon 1 | . . . . 1 Launcher 5 | . . 2 1 2 Special Weapon . | . . . . . Impact Weapon . | . . . . . Slashing Weapon 3 | . . . 1 2 Piercing Weapon . | . . . . . Special Melee Weapon . | . . . . . Unidentified Prototypes 1 | . . . 1 . Parts Lost 14 | . . . 5 9 Power 1 | . . . . 1 Propulsion 5 | . . . 2 3 Utility 6 | . . . 2 4 Weapon 2 | . . . 1 1 Highest Loss Streak 9 | . . . 3 9 Average Slot Usage (%) 92 | . 84 100 96 83 Engine 6 | . 14 11 . 3 Core 3 | . . . 8 3 Wheel 24 | . 27 22 26 22 Device 14 | . 6 22 15 7 Storage 8 | . . 11 9 7 Processor 9 | . 6 11 9 9 Hackware 2 | . . . 6 . Protection 4 | . . . 2 15 Energy Gun 4 | . . . 10 . Ballistic Gun 11 | . 28 17 6 . Ballistic Cannon 1 | . . . . 6 Launcher 2 | . . 4 . 6 Naked Turns . | . . . . . Heaviest Build 27 | 8 12 16 25 27 Greatest Support 36 | 20 20 20 36 36 Greatest Overweight (x) 1 | . . . 1 1 Average Overweight (x) . | . . . . . Largest Inventory Capacity 6 | 4 6 6 6 6 Average Capacity 5 | 4 4 6 6 5 Most Carried 6 | 2 5 5 6 6 Average Carried 4 | . 3 4 4 4 Final Capacity 6 | 4 6 6 6 4 Final Carried 5 | 1 5 5 5 3 Class Distribution -------------------- 100% | Mutant Dominant Class ---------------- Mutant | -10/Materials Mutant | -9/Materials Mutant | -8/Materials Mutant | -8/Garrison Resources | -11 -10 -9 -8 -8 ----------- Run | Scr Mat Mat Mat Gar Matter Collected 703 | 177 . 239 284 3 Remotely . | . . . . . Salvage Created 689 | . . 169 409 111 Parts 54 | . . 15 34 5 Haulers Intercepted 2 | . . 1 1 . Recyclers Shooed 1 | . . 1 . . Parts Field Recycled . | . . . . . Retrieved Matter . | . . . . . Parts Self-Destructed . | . . . . . Prevented . | . . . . . Kills | -11 -10 -9 -8 -8 ------- Run | Scr Mat Mat Mat Gar Combat Hostiles Destroyed 18 | . . 3 8 7 Melee 2 | . . . 1 1 Guns 8 | . . 2 6 . Cannons 1 | . . . . 1 AOE 7 | . . 1 1 5 Classes Destroyed 7 | . . 4 3 . Hauler 2 | . . 1 1 . Operator 2 | . . 1 1 . Watcher 2 | . . . 2 . Swarmer 6 | . . . 3 3 Grunt 8 | . . 2 2 4 Sentry 3 | . . 1 2 . Hunter 1 | . . . 1 . Best Kill Streak 4 | . . 2 3 4 Combat Bots Only 4 | . . 2 3 4 Max Kills in Single Turn 2 | . . 1 1 2 Gunslinging . | . . . . . Exploded 2 | . . 1 1 2 Melee 1 | . . . 1 1 Uniques/NPCs Destroyed . | . . . . . Combat | -11 -10 -9 -8 -8 -------- Run | Scr Mat Mat Mat Gar Damage Taken 2256 | . . 185 785 1286 Core 673 | . . 112 163 398 Absorbed by Shields 36 | . . . . 36 Core Remaining (%) 90 | 100 100 72 . . Volleys Fired 58 | . . 16 31 11 Largest 2 | . . 2 2 2 Hottest 108 | . . 50 108 74 Shots Fired 112 | . . 32 61 19 Gun 86 | . . 28 58 . Cannon 11 | . . . . 11 Launcher 15 | . . 4 3 8 Special . | . . . . . Kinetic 58 | . . 28 19 11 Thermal 11 | . . . 11 . Explosive 15 | . . 4 3 8 Electromagnetic 28 | . . . 28 . Robot Hit Streak 14 | . . 5 10 14 Robot Miss Streak 4 | . . 3 4 1 Penetration Max . | . . . . . Secondary Targets 1 | . . . 1 . Max Gunslinging Chain 1 | . . . 1 . Shots Hit Robots 74 | . . 14 48 12 Core Hits 46 | . . 12 23 11 Critical Hits 1 | . . . 1 . Critical Kills . | . . . . . Critical Parts Destroyed 1 | . . . 1 . Melee Attacks 9 | . . . 3 6 Impact . | . . . . . Slashing 9 | . . . 3 6 Piercing . | . . . . . Sneak Attacks . | . . . . . Combat Hostiles . | . . . . . Follow-up Attacks . | . . . . . Damage Inflicted 1831 | . . 263 851 717 Guns 800 | . . 169 631 . Cannons 113 | . . . . 113 Explosions 739 | . . 94 120 525 Melee 179 | . . . 100 79 Ramming . | . . . . . Kinetic 397 | . . 169 115 113 Thermal 199 | . . . 199 . Explosive 678 | . . 94 59 525 Electromagnetic 378 | . . . 378 . Impact . | . . . . . Slashing 179 | . . . 100 79 Piercing . | . . . . . Highest Corruption . | . . . . . Average Corruption . | . . . . . Corruption Purged . | . . . . . Overload Shots . | . . . . . Overflow Damage 32 | . . . 5 27 Projectiles . | . . . . . Explosions 24 | . . . 5 19 Melee 8 | . . . . 8 Knockbacks 1 | . . . . 1 Impact . | . . . . . Kinetic 1 | . . . . 1 Secondary . | . . . . . Self-Inflicted Damage 129 | . . . 60 69 Shots 5 | . . . 2 3 Rammed 1 | . . . . 1 Targets Rammed 1 | . . . . 1 Kicked . | . . . . . Crushed . | . . . . . Highest Temperature 315 | . . 6 315 177 Average Temperature 90 | . . 5 104 66 Received Heat Transfer 723 | . . 60 261 402 Effects 1 | . . . 1 . Energy Bleed 1 | . . . 1 . Siege Activations . | . . . . . Robots Corrupted . | . . . . . Combat Hostiles . | . . . . . Parts Fried 5 | . . . 5 . Impact Corruptions . | . . . . . Robots Melted . | . . . . . Combat Hostiles . | . . . . . Parts Melted 1 | . . . 1 . Heat Transferred 346 | . . . 346 . Parts Sabotaged . | . . . . . Parts Stolen . | . . . . . Parts Stripped . | . . . . . Power Chain Reactions 1 | . . . 1 . Missiles Intercepted . | . . . . . Alert | -11 -10 -9 -8 -8 ------- Run | Scr Mat Mat Mat Gar Peak Influence 361 | . 14 172 200 361 Average Influence 73 | . 11 43 75 162 Maximum Alert Level 1 | . . . 1 1 Low Security (%) 90 | 100 100 100 99 54 Level 1 9 | . . . . 45 Level 2 . | . . . . . Level 3 . | . . . . . Level 4 . | . . . . . Level 5 . | . . . . . High Security . | . . . . . Max Security . | . . . . . Squads Dispatched 1 | . . 1 . . Investigation . | . . . . . Extermination . | . . . . . Reinforcement 1 | . . 1 . . Assault . | . . . . . Garrison . | . . . . . Intercept . | . . . . . Construction Impeded . | . . . . . Haulers Reinforced . | . . . . . Stealth | -11 -10 -9 -8 -8 --------- Run | Scr Mat Mat Mat Gar Distress Signals 3 | . . 3 . . Communications Jammed . | . . . . . Distress Signals . | . . . . . Times Spotted 48 | . 3 11 17 17 Peak Tracking Total 9 | . 3 6 4 9 Tactical Retreats 7 | . . 2 3 2 Traps | -11 -10 -9 -8 -8 ------- Run | Scr Mat Mat Mat Gar Traps Triggered 5 | . 2 . . 3 Indirectly . | . . . . . Trap Hack Attempts . | . . . . . Triggered . | . . . . . Disarmed 9 | . 3 . 6 . Reprogrammed . | . . . . . Reused . | . . . . . Traps Extracted . | . . . . . Installed . | . . . . . Triggered . | . . . . . Machines | -11 -10 -9 -8 -8 ---------- Run | Scr Mat Mat Mat Gar Machines Disabled 3 | . . . 1 2 Max in Single Turn 1 | . . . 1 1 Garrison Relay 2 | . . . . 2 Machines Sabotaged . | . . . . . Garrisons Compromised . | . . . . . Overloaded Fab Kills . | . . . . . Fab Network Shutdowns . | . . . . . Hacking | -11 -10 -9 -8 -8 --------- Run | Scr Mat Mat Mat Gar Machines Accessed 10 | . 4 1 5 . Terminals 6 | . 3 . 3 . Fabricators . | . . . . . Repair Stations 1 | . . 1 . . Recycling Units 1 | . 1 . . . Scanalyzers 1 | . . . 1 . Garrison Access 1 | . . . 1 . Total Hacks 21 | . 7 2 12 . Successful 16 | . 6 1 9 . Failed 5 | . 1 1 3 . Catastrophic 1 | . 1 . . . Database Lockouts . | . . . . . Manual . | . . . . . Terminals 16 | . 6 . 10 . Fabricators . | . . . . . Repair Stations 2 | . . 2 . . Recycling Units 1 | . 1 . . . Scanalyzers 1 | . . . 1 . Garrison Access 1 | . . . 1 . Terminal Hacks 13 | . 5 . 8 . Record 2 | . . . 2 . Robot Analysis 2 | . 1 . 1 . Emergency Access Points 1 | . . . 1 . Alert Level 2 | . 1 . 1 . Unreport Threat 1 | . . . 1 . Locate Traps 1 | . . . 1 . Disarm Traps 2 | . 1 . 1 . Dispatch Records 1 | . 1 . . . Zone Layout 1 | . 1 . . . Fabricator Hacks . | . . . . . Repair Station Hacks 1 | . . 1 . . Scan Component 1 | . . 1 . . Recycling Unit Hacks 1 | . 1 . . . Retrieve Components 1 | . 1 . . . Scanalyzer . | . . . . . Garrison Access Hacks 1 | . . . 1 . Unlock Access 1 | . . . 1 . Unauthorized Hacks . | . . . . . Terminals . | . . . . . Fabricators . | . . . . . Repair Stations . | . . . . . Recycling Units . | . . . . . Scanalyzers . | . . . . . Garrison Access . | . . . . . Data Cores Recovered 1 | . . . 1 . Used 1 | . . . 1 . Hacking Detections 6 | . 3 1 2 . Full Trace Events . | . . . . . Feedback Events . | . . . . . Feedback Blocked . | . . . . . Robot Schematics Acquired . | . . . . . Robots Built . | . . . . . Matter . | . . . . . Time . | . . . . . Total Robot Build Rating . | . . . . . Part Schematics Acquired . | . . . . . Parts Built . | . . . . . Matter . | . . . . . Time . | . . . . . Total Part Build Rating . | . . . . . Parts Repaired . | . . . . . Time . | . . . . . Parts Recycled . | . . . . . Recycled Matter . | . . . . . Retrieved Matter . | . . . . . Retrieved Components 3 | . 3 . . . Parts Scanalyzed . | . . . . . Part Schematics Acquired . | . . . . . Parts Damaged . | . . . . . Bothacking | -11 -10 -9 -8 -8 ------------ Run | Scr Mat Mat Mat Gar Used RIF Installer . | . . . . . Robots Hacked . | . . . . . Non-combat . | . . . . . Combat . | . . . . . Robot Hacks Applied . | . . . . . Relay Couplers Released 9 | . . . . 9 Machine Destruction 9 | . . . . 9 Robots Rewired . | . . . . . Allies Hacked . | . . . . . Hacks Repelled . | . . . . . Allies | -11 -10 -9 -8 -8 -------- Run | Scr Mat Mat Mat Gar Total Allies . | . . . . . Largest Group . | . . . . . Highest-Rated Group . | . . . . . Highest-Rated Ally . | . . . . . Total Orders . | . . . . . Ally Attacks . | . . . . . Total Damage . | . . . . . Kills . | . . . . . Allies Corrupted . | . . . . . Allies Melted . | . . . . . Intel | -11 -10 -9 -8 -8 ------- Run | Scr Mat Mat Mat Gar Robot Analysis Total 2 | . 1 . 1 . Derelict Logs Recovered . | . . . . . Drone Launches . | . . . . . Drone Recoveries . | . . . . . Exploration | -11 -10 -9 -8 -8 ------------- Run | Scr Mat Mat Mat Gar Turns Passed 1503 | 40 206 405 556 296 Spaces Moved 1156 | 38 222 319 360 217 Core 28 | 3 . . . 25 Treads . | . . . . . Legs . | . . . . . Wheels 1128 | 35 222 319 360 192 Hover . | . . . . . Flight . | . . . . . Fastest Speed 50 | 50 80 80 80 50 Average Speed 82 | 77 80 80 85 85 Slowest Speed 100 | 80 80 80 90 100 Overloaded Moves . | . . . . . Propulsion Burnouts . | . . . . . Robots Hopped . | . . . . . Cave-ins Triggered . | . . . . . Exploration Rate (%) 27 | 3 37 27 26 43 Regions Visited 4 Branch Regions . Pre-discovered Areas . | . . . . . Known Exits Taken 3 | . 1 1 1 . Unknown Exits Taken 1 | 1 . . . . Scrap Searched . | . . . . . Spaces Dug . | . . . . . Terrain Destroyed 68 | . . 21 38 9 Melee . | . . . . . Projectile . | . . . . . AOE 68 | . . 21 38 9 Actions | -11 -10 -9 -8 -8 --------- Run | Scr Mat Mat Mat Gar Total 1573 | 48 248 436 543 298 Wait 243 | . 14 94 108 27 Move 1153 | 37 221 318 360 217 Hop . | . . . . . Pick Up 30 | 6 5 2 14 3 Fast Attach 5 | . 4 . 1 . Attach 18 | 5 2 2 8 1 Detach 3 | . 1 . 1 1 Swap 19 | . 1 4 9 5 Drop 11 | . . . 8 3 Fire 58 | . . 16 31 11 Melee 9 | . . . 3 6 Ram 1 | . . . . 1 Kick . | . . . . . Crush . | . . . . . Escape Stasis 23 | . . . . 23 Rewire . | . . . . . Trap . | . . . . . Miscellaneous . | . . . . . Route ------- -11/Scrapyard -10/Materials -9/Materials -8/Materials -8/Garrison History --------- Turn | Location | Event 2 | -11/Scrapyard | Met Revision 17 21 | -11/Scrapyard | Discovered new exit (range 16) 41 | -11/Scrapyard | Entered Materials 181 | -10/Materials | Discovered new exit (range 9) 188 | -10/Materials | Identified exit to Materials 247 | -10/Materials | Entered another Materials area 247 | -9/Materials | Evolved 2 slots: Utility x2 307 | -9/Materials | Build established: Mutant 640 | -9/Materials | Discovered new exit (range 16) 651 | -9/Materials | Identified exit to Materials 652 | -9/Materials | Entered another Materials area 652 | -8/Materials | Evolved 2 slots: Propulsion x1, Utility x1 1077 | -8/Materials | Lost 3 parts (2u1w) 1208 | -8/Materials | Identified exit to Garrison 1208 | -8/Materials | Entered Garrison 1284 | -8/Garrison | Triggered checkpoint 1299 | -8/Garrison | Garrison Relay disabled 1339 | -8/Garrison | Triggered checkpoint 1343 | -8/Garrison | Triggered checkpoint 1440 | -8/Garrison | Triggered checkpoint 1447 | -8/Garrison | Core integrity fell below 50% 1481 | -8/Garrison | Core integrity fell below 20% 1488 | -8/Garrison | Triggered checkpoint 1494 | -8/Garrison | Garrison Relay disabled 1504 | -8/Garrison | Destroyed by L-31 Rogue with Katana Last Messages --------------- 01473_ Field strength at 76. 01474_ Field strength at 61. 01475_ Field strength at 48. 01475_ Arm. Wheel destroyed. 01476_ Field strength at 37. 01477_ Field strength at 28. 01477_ Core Shielding destroyed. 01478_ Field strength at 17. 01479_ Field strength at 9. 01480_ Field strength at 3. 01480_ Stasis field depleted. 01488_ Beams of light sweep through the air. An alarm sounds. 01494_ Garrison Relay disabled. 01494_ Relay Coupler [NC] tumbles out of relay unit. 01494_ Relay Coupler [Brawler] tumbles out of relay unit. 01494_ Relay Coupler [Swarmer] tumbles out of relay unit. 01494_ Relay Coupler [NC] tumbles out of relay unit. 01494_ Relay Coupler [Grunt] tumbles out of relay unit. 01500_ ALERT: Garrison interior compromised. 01500_ S-10 Pest destroyed. Map ----- +----------------------------------------------------+ | ???????????????????????????????????????????? | | ???????????????????????????????????????????? | | ???????????????????????????????????????????? | | ???????????????????????????????????????????? | | ???????????????????????????????????????????? | | ???????????????????????????????????????????? | | ???????????????????????????????????????????? | | ???????????????????????????????????????????? | | ???????????????????????????????????????????? | | ???????????????????????????????????????????? | | ???????????????????????????????????????????? | | ??????????????????????????????????????????## | | ???????????????????????????????????????? | | ????????????????????????????????????????? | | ????????????????????????????????????????? | | ??????????????????????????????????????????# | | ????????????????????????????????????????### | | ????????????????????????????????????????# | | ????????????????????????????????????????# | | ????????????????????????????????????????# | | ????????????????????????????????????????# | | ??????????????????????????????????????????# | | ??????????????????????????????????????????# | | ???????????????#######????????????????????# | | ???????????????#""!""#????????????????????# | | ????????????????#!!@##############????????# | | ????????????????# lb #????????## | | ????????????????########## ### #?????????# | | ?????????????????????????# #?# #?????????# | | ?????????????????????????#####?# #?????????# | | ???????????????????????????????# #?????????# | | ???????????????????????????????# #?????????# | | ???????????????????????????????# #?????????# | | ????????????????????????????#### #####+##### | | ????????????????????????????# | | ????????????????????????????# | | ????????????????????????????# ############# | | ????????????????????????????# ????????????? | | ????????????????????????????# ????????????? | | ????????????????????????????# ?????????????? | | ????????????????????????????# ?????????????? | | ????????????????????????????# ?????????????? | | ????????????????????????????#??????????????? | | ???????????????????????????????????????????? | | ???????????????????????????????????????????? | | ???????????????????????????????????????????? | | ???????????????????????????????????????????? | | ???????????????????????????????????????????? | | ???????????????????????????????????????????? | | ???????????????????????????????????????????? | +----------------------------------------------------+ Best States ------------- Heat Dissipation 31 Energy Generation 14 Energy Capacity 250 Matter Stores 300 Matter Capacity 300 Sight Range 16 Robot Scan Range 13 Terrain Scan Density 10 ECM Strength 1 Armor Coverage 225 Core Shielding 20 Evasion (%) 50 Offensive Hacking 10 Item Schematics ----------------- None Robot Schematics ------------------ None Fabricated ------------ Nothing Alien Tech Used ----------------- None Achievements -------------- None Challenges ------------ None Game ------ Seed BombardmentRelayBoosters Manual? 0 Play Time 00:28:10 Cumulative 39.0 hours Start 2020.03.04 @ 15:23:09 End 2020.03.04 @ 15:50:59 Sessions 1 Manual Loads 0 Difficulty Rogue Special Mode None Game No. 59 Rogue 59 Adventurer 0 Explorer 0 Win Type - Total 0 Types 0/0/0/0/0/0/0 Lore% 26 Gallery% 34 Achievement% 17 Wizard Run 0 Options --------- ASCII 0 Keyboard 0 Movement Mouse Keybinds 0 Fullscreen 1 Font 18/Smallcaps Map View 76x50 Tactical HUD 1 Map Filters NONE Filters NONE Steam 1 RUN: e3fbcc6b-f4c6-497a-a33c-eb53c6c043d6